Cogmind - Beta 16 @@@ ROGUE MODE // 2026.01.03 @ 00:17:05 Player: KZ_RAD Result: Destroyed by Y-45 Defender with Beam Rifle Performance ------------- Evolutions (1) 500 Regions Visited (3) 600 Robots Destroyed (0) 0 Value Destroyed (0) 0 Prototype IDs (0) 0 Alien Tech Used (0) 0 Bonus (200) 200 TOTAL SCORE: 1300 Bonus ------- Pacifist 200 Cogmind --------- Core Integrity 0/400 Matter 285/300 Energy 98/100 System Corruption 0% Temperature Cool (9) Movement Core (50) Location -9/Storage Parts ------- > --- POWER (1) -------- (None) > --- PROPULSION (2) --- (None) > --- UTILITY (4) ------ Advanced Visual Processing Unit > --- WEAPON (2) ------- (None) > --- INVENTORY (5) ---- (None) Peak State ------------ > --- POWER ------------ (None) > --- PROPULSION ------- (None) > --- UTILITY ---------- Advanced Visual Processing Unit Seismic Detector > --- WEAPON ----------- (None) > --- INVENTORY -------- (None) [Rating: 4] Favorites ----------- Power None Propulsion Hover Unit Hover Unit Hover Unit Utility Advanced Visual Processing Unit Device Seismic Detector Processor Advanced Visual Processing Unit Weapon Small Laser Energy Gun Small Laser Special Melee Weapon Datajack Build | -11 -10 -9 -9 ------- Run | Yrd Mat Mat Sto Slots Evolved 2 | . . 2 . Power . | . . . . Propulsion . | . . . . Utility 2 | . . 2 . Weapon . | . . . . Parts Attached 7 | 2 2 2 1 Power . | . . . . Engine . | . . . . Core . | . . . . Reactor . | . . . . Propulsion 1 | . . 1 . Treads . | . . . . Leg . | . . . . Wheel . | . . . . Hover 1 | . . 1 . Flight . | . . . . Utility 3 | . 1 1 1 Device 1 | . 1 . . Storage . | . . . . Processor 2 | . . 1 1 Hackware . | . . . . Protection . | . . . . Artifact . | . . . . Weapon 3 | 2 1 . . Energy Gun 2 | 2 . . . Energy Cannon . | . . . . Ballistic Gun . | . . . . Ballistic Cannon . | . . . . Launcher . | . . . . Special Weapon . | . . . . Impact Weapon . | . . . . Slashing Weapon . | . . . . Piercing Weapon . | . . . . Special Melee Weapon 1 | . 1 . . Unidentified Prototypes . | . . . . Parts Lost 3 | . 1 1 1 Power . | . . . . Propulsion 1 | . . . 1 Utility 1 | . . 1 . Weapon 1 | . 1 . . Highest Loss Streak 1 | . 1 1 1 To Critical Strikes . | . . . . Average Backups . | . . . . Power . | . . . . Propulsion . | . . . . Utility . | . . . . Weapon . | . . . . Tool/Special . | . . . . Unused Backups . | . . . . Power . | . . . . Propulsion . | . . . . Utility . | . . . . Weapon . | . . . . Tool/Special . | . . . . Average Slot Usage (%) 19 | . 17 19 21 Hover 5 | . . . 11 Device 3 | . 1 9 . Processor 7 | . . 10 10 Energy Gun 3 | . 14 . . Peak Build Rating 4 | 2 2 4 4 Average Rating 3 | 1 1 3 3 On Entrance 1 | . 2 1 4 Avg Prop Armor Cover (%) . | . . . . Naked Turns 23 | . 23 . . Heaviest Build 3 | 3 3 1 . Greatest Support 6 | 3 3 6 6 Greatest Overweight (x) . | . . . . Average Overweight (x) . | . . . . Largest Inventory Capacity 5 | 5 5 5 5 Average Capacity 5 | 5 5 5 5 Most Carried 2 | 1 1 2 1 Average Carried . | . . . . Final Capacity 5 | 5 5 5 5 Final Carried 1 | . . 1 . Class Distribution -------------------- 100% | Mutant Dominant Class ---------------- Mutant | -10/Materials Mutant | -9/Materials Mutant | -9/Storage Resources | -11 -10 -9 -9 ----------- Run | Yrd Mat Mat Sto Matter Collected 220 | 220 . . . Remotely . | . . . . Salvage Created . | . . . . Parts . | . . . . Haulers Intercepted . | . . . . Recyclers Shooed . | . . . . Parts Field Recycled . | . . . . Retrieved Matter . | . . . . Parts Self-Destructed . | . . . . Prevented . | . . . . Parts Restored . | . . . . Kills | -11 -10 -9 -9 ------- Run | Yrd Mat Mat Sto Combat Hostiles Destroyed . | . . . . Classes Destroyed . | . . . . Best Kill Streak . | . . . . Combat Bots Only . | . . . . Max Kills in Single Turn . | . . . . Gunslinging . | . . . . Exploded . | . . . . Melee . | . . . . Uniques/NPCs Destroyed . | . . . . Combat | -11 -10 -9 -9 -------- Run | Yrd Mat Mat Sto Hostile Shots Fired 113 | . 42 67 4 Missed 44 | . 17 27 . Hits 69 | . 25 40 4 Projectile 69 | . 25 40 4 Damage Taken 651 | . 191 408 52 Core 553 | . 143 382 28 Absorbed by Shields . | . . . . Core Remaining (%) 71 | 100 42 . . Volleys Fired 1 | . 1 . . Largest 2 | . 2 . . Hottest 80 | . 80 . . Shots Fired 2 | . 2 . . Gun 2 | . 2 . . Cannon . | . . . . Launcher . | . . . . Special . | . . . . Kinetic . | . . . . Thermal 1 | . 1 . . Explosive . | . . . . Electromagnetic 1 | . 1 . . Robot Hit Streak . | . . . . Robot Miss Streak 2 | . 2 . . Penetration Max . | . . . . Secondary Targets . | . . . . Shots Hit Robots . | . . . . Core Hits 3 | . . 3 . Critical Kills . | . . . . Critical Parts Destroyed . | . . . . Critical Strikes . | . . . . Melee Attacks 1 | . 1 . . Impact . | . . . . Slashing . | . . . . Piercing . | . . . . Sneak Attacks . | . . . . Combat Hostiles . | . . . . Follow-up Attacks . | . . . . Damage Inflicted 61 | . 10 51 . Guns . | . . . . Cannons . | . . . . Explosions . | . . . . Melee . | . . . . Ramming 61 | . 10 51 . Kinetic . | . . . . Thermal . | . . . . Explosive . | . . . . Electromagnetic . | . . . . Impact . | . . . . Slashing . | . . . . Piercing . | . . . . Highest Corruption . | . . . . Average Corruption . | . . . . Corruption Purged . | . . . . Corruption Blocked . | . . . . Overload Shots . | . . . . Overflow Damage . | . . . . Projectiles . | . . . . Explosions . | . . . . Melee . | . . . . Knockbacks . | . . . . Impact . | . . . . Kinetic . | . . . . Secondary . | . . . . Self-Inflicted Damage 29 | . 5 24 . Shots . | . . . . Rammed 7 | . 1 6 . Targets Rammed 7 | . 1 6 . Kicked . | . . . . Crushed . | . . . . Highest Temperature 3 | . 3 . . Average Temperature 2 | . 2 . . Received Heat Transfer 84 | . . 60 24 Siege Activations . | . . . . Martial Activations . | . . . . Shielding Activations . | . . . . Robots Disrupted . | . . . . Combat Hostiles . | . . . . Robots Corrupted . | . . . . Combat Hostiles . | . . . . Parts Fried . | . . . . Impact Corruptions . | . . . . Robots Melted . | . . . . Combat Hostiles . | . . . . Parts Melted . | . . . . Heat Transferred . | . . . . Parts Sabotaged . | . . . . Parts Stolen . | . . . . Parts Stripped . | . . . . Power Chain Reactions . | . . . . Alert | -11 -10 -9 -9 ------- Run | Yrd Mat Mat Sto Maximum Alert Level . | . . . . Low Security (%) 100 | 100 100 100 100 Level 1 . | . . . . Level 2 . | . . . . Level 3 . | . . . . Level 4 . | . . . . Level 5 . | . . . . High Security . | . . . . Max Security . | . . . . Peak Influence 40 | . . 23 40 Initial 5 | . . . 5 Average 6 | . . 6 9 Influence Increases 152 | . . 58 94 Successful Hack 17 | . . 13 4 Partial Spotted 30 | . . . 30 Lose Combat Pursuer 105 | . . 45 60 Influence Decreases 132 | . . 43 89 Entered New Map 10 | . . . 10 Time Decay 102 | . . 33 69 Lost Part 20 | . . 10 10 Squads Dispatched 3 | . . 1 2 Investigation 2 | . . 1 1 Extermination . | . . . . Reinforcement 1 | . . . 1 Assault . | . . . . Garrison . | . . . . Intercept . | . . . . Searches Triggered . | . . . . Construction Impeded . | . . . . Haulers Reinforced . | . . . . Active Scanning Responses . | . . . . Cargo Convoy Interrupts . | . . . . Stealth | -11 -10 -9 -9 --------- Run | Yrd Mat Mat Sto Distress Signals 3 | . 1 1 1 Communications Jammed . | . . . . Distress Signals . | . . . . Times Spotted 30 | . 6 16 8 Peak Tracking Total 15 | . 6 15 6 Tactical Retreats 5 | . . 3 2 Traps | -11 -10 -9 -9 ------- Run | Yrd Mat Mat Sto Traps Triggered 1 | . . 1 . Indirectly . | . . . . Trap Hack Attempts . | . . . . Triggered . | . . . . Disarmed . | . . . . Reprogrammed . | . . . . Reused . | . . . . Traps Extracted . | . . . . Installed . | . . . . Triggered . | . . . . Machines | -11 -10 -9 -9 ---------- Run | Yrd Mat Mat Sto Machines Disabled . | . . . . Max in Single Turn . | . . . . Machines Repaired . | . . . . Machines Dismantled . | . . . . Machines Sabotaged . | . . . . Overloaded Fab Kills . | . . . . Hacking | -11 -10 -9 -9 --------- Run | Yrd Mat Mat Sto Machines Accessed 8 | . . 3 5 Terminals 7 | . . 2 5 Fabricators . | . . . . Repair Stations . | . . . . Recycling Units . | . . . . Scanalyzers 1 | . . 1 . Garrison Access . | . . . . Total Hacks 17 | . . 7 10 Successful 9 | . . 6 3 Failed 8 | . . 1 7 Catastrophic 2 | . . . 2 Database Lockouts . | . . . . Manual . | . . . . Terminals 15 | . . 5 10 Fabricators . | . . . . Repair Stations . | . . . . Recycling Units . | . . . . Scanalyzers 2 | . . 2 . Garrison Access . | . . . . Terminal Hacks 7 | . . 4 3 Record 2 | . . 2 . Open Door 1 | . . . 1 Recycling Unit Index 1 | . . . 1 Alert Level 1 | . . . 1 Recall Reinforcements 1 | . . 1 . Zone Layout 1 | . . 1 . Fabricator Hacks . | . . . . Repair Station Hacks . | . . . . Recycling Unit Hacks . | . . . . Scanalyzer 2 | . . 2 . Insert Component 1 | . . 1 . Analyze 1 | . . 1 . Garrison Access Hacks . | . . . . Unauthorized Hacks . | . . . . Terminals . | . . . . Fabricators . | . . . . Repair Stations . | . . . . Recycling Units . | . . . . Scanalyzers . | . . . . Garrison Access . | . . . . Data Cores Recovered . | . . . . Used . | . . . . Hacking Detections 6 | . . 2 4 Full Trace Events 1 | . . . 1 Feedback Events . | . . . . Feedback Blocked . | . . . . Robot Schematics Acquired . | . . . . Robots Built . | . . . . Authchips . | . . . . Time . | . . . . Total Robot Build Rating . | . . . . Part Schematics Acquired 1 | . . 1 . Parts Built . | . . . . Authchips . | . . . . Time . | . . . . Total Part Build Rating . | . . . . Part Studies Acquired . | . . . . Parts Repaired . | . . . . Time . | . . . . Parts Recycled . | . . . . Recycled Matter . | . . . . Retrieved Matter . | . . . . Retrieved Components . | . . . . Parts Scanalyzed 1 | . . 1 . Part Schematics Acquired 1 | . . 1 . Parts Damaged . | . . . . Bothacking | -11 -10 -9 -9 ------------ Run | Yrd Mat Mat Sto Used RIF Installer . | . . . . Robots Hacked . | . . . . Non-combat . | . . . . Combat . | . . . . Robot Hacks Applied . | . . . . Relay Couplers Released . | . . . . Fabnet Peak Effective % . | . . . . Robots Rewired . | . . . . Allies Hacked . | . . . . Hacks Repelled . | . . . . Allies | -11 -10 -9 -9 -------- Run | Yrd Mat Mat Sto Total Allies . | . . . . Largest Group . | . . . . Highest-Rated Group . | . . . . Highest-Rated Ally . | . . . . Total Orders . | . . . . Ally Attacks . | . . . . Total Damage . | . . . . Kills . | . . . . Allies Corrupted . | . . . . Allies Melted . | . . . . Intel | -11 -10 -9 -9 ------- Run | Yrd Mat Mat Sto Active Infowar (turns) 273 | . 2 92 179 Optics 262 | . . 83 179 Seismic 92 | . 2 90 . Robot Analysis Total . | . . . . Derelict Logs Recovered . | . . . . Drone Launches . | . . . . Drone Recoveries . | . . . . Exploration | -11 -10 -9 -9 ------------- Run | Yrd Mat Mat Sto Turns Passed 396 | 27 72 117 180 Spaces Moved 586 | 45 122 212 207 Core 379 | 45 122 207 5 Treads . | . . . . Legs . | . . . . Wheels . | . . . . Hover 207 | . . 5 202 Flight . | . . . . Fastest Speed 50 | 50 50 50 50 Average Speed 53 | 50 50 50 59 Slowest Speed 60 | 50 50 60 60 Overloaded Moves . | . . . . Propulsion Burnouts . | . . . . Robots Hopped . | . . . . Potential Cave-ins . | . . . . Cave-ins Triggered . | . . . . Exploration Rate (%) 24 | 3 34 21 38 Regions Visited 3 Branch Regions 1 Pre-discovered Areas . | . . . . Known Exits Taken . | . . . . Unknown Exits Taken 3 | 1 1 1 . Scrap Searched . | . . . . Spaces Dug . | . . . . Terrain Destroyed . | . . . . Melee . | . . . . Projectile . | . . . . AOE . | . . . . Terrain Rammed . | . . . . Walls Destroyed . | . . . . Machines Disabled . | . . . . Actions | -11 -10 -9 -9 --------- Run | Yrd Mat Mat Sto Total 664 | 48 130 222 264 Wait 55 | . . . 55 Move 583 | 44 121 211 207 Hop . | . . . . Pick Up 7 | 2 2 3 . Fast Attach . | . . . . Attach 7 | 2 2 2 1 Detach . | . . . . Swap . | . . . . Drop 3 | . 2 . 1 Fire 1 | . 1 . . Melee 1 | . 1 . . Ram 7 | . 1 6 . Kick . | . . . . Crush . | . . . . Escape Stasis . | . . . . Rewire . | . . . . Trap . | . . . . Miscellaneous . | . . . . Route ------- -11/Scrapyard -10/Materials -9/Materials -9/Storage History --------- Turn | Location | Event 7 | -11/Scrapyard | Discovered new exit (range 15) 28 | -11/Scrapyard | Entered Materials 87 | -10/Materials | Core integrity fell below 50% 93 | -10/Materials | Discovered new exit (range 9) 100 | -10/Materials | Entered another Materials area 100 | -9/Materials | Evolved 2 slots: Utility x2 197 | -9/Materials | Core integrity fell below 50% 208 | -9/Materials | Core integrity fell below 20% 216 | -9/Materials | Discovered new exit (range 3) 217 | -9/Materials | Entered Storage 315 | -9/Storage | Build established: Mutant 397 | -9/Storage | Destroyed by Y-45 Defender with Beam Rifle Last Messages --------------- O-16 Technician: "IFF HANDSHAKE FAILED. SECURING TERMINAL." O-16 Technician uses terminal to summon reinforcements. ALERT: Hostiles spotted, dispatching reinforcements to Terminal S014. O-16 Technician locks terminal. Connecting with Door Terminal... >>Open(Door) Sealed Heavy Doors opened. Connecting with Door Terminal... K-01 Serf cleans the Compression Vault. T-07 Excavator is excavating. K-01 Serf collects debris. W-16 Scout sends out distress signal. Connecting with Door Terminal... ALERT: Suspicious activity at Terminal S008. Dispatching Investigation squad. K-01 Serf collects debris. Hover Unit destroyed. Map ----- +----------------------------------------------------+ | ?????????????????????????????? | | ?????????????????????????????? | | ?????????????????????????????? | | ?????????????""??????????????? | | ##??????????? ??????????????? | | ##?????????? ??????????????? | | #?????????? #?????????????? | | #??????????? #?????????????? | | ###????????? #?????????????? | | ""#????????? #?????????????? | | Y"#????????? #?????????????? | | ""#????????# #?????????????? | | ###????????# #?????????????? | | #??????????+ +?????????????? | | #??????????# #?????????????? | | #??????????# #?????????????? | | #??????????# #?????????????? | | #??????????# #?????????????? | | ############ ###+##????????? | | #???###### | | #???# # | | +##+#########+#### #???# # | | ???# # #???# # | | ""???# """" # #???# # | | """??# "???" # g#####Y # | | """??# "????" # /@ # | | ?# ????"" # # # | | """ ?#????"" # # # | | """ # """" # + # | | """ # # ##+###### | | ? # # ## #? | | #" "#??###+#####+# ## #? | | #"G"#??????????# ## """ #? | | #"""???????????# ## """ #? | | ?###?????# ##### ## """ #? | | ?????????# + #? | | ?????????# ###+#########? | | ?????????# ? ???????? | | ?????? + #?????? | | ???# ###+###### #?????? | | ???##???????????# #?????? | | ????????????????# #?????? | | ????????????????# #?????? | | ????????????????########?????? | | ?????????????????????????????? | | ?????????????????????????????? | | ?????????????????????????????? | | ?????????????????????????????? | | ?????????????????????????????? | | ?????????????????????????????? | +----------------------------------------------------+ Best States ------------- Heat Dissipation 28 Energy Generation 5 Energy Capacity 100 Matter Stores 300 Matter Capacity 300 Sight Range 20 Terrain Scan Density 10 Evasion (%) 53 Item Schematics ----------------- Adv. Visual Processing Unit | -9/Materials | Scanalyzed Robot Schematics ------------------ None Fabricated ------------ Nothing Repaired ---------- Nothing Studied --------- None Alien Tech Used ----------------- None Achievements -------------- None Challenges ------------ None Game ------ Seed ChromaticForceRipper Manual? 0 Play Time 00:12:44 Cumulative 5.3 hours Start 2026.01.03 @ 00:07:17 End 2026.01.03 @ 00:17:05 Sessions 1 Manual Loads 0 Difficulty Rogue Special Mode None Game No. 13 Rogue 13 Adventurer 0 Explorer 0 Win Type - Total 0 Types 0/0/0/0/0/0/0/0/0/0 Lore% 5 Gallery% 9 Achievement% 9 Wizard Run 0 Options --------- Layout 1 ASCII 0 Keyboard 0 Movement Mouse Keybinds 0 Fullscreen 1 Font 32/SmallcapsGlow Map View 50x35 Zoom Use 0% Tactical HUD 0 Map Filters NONE Filters NONE Steam 1 RUN: cf1bc577-1a87-44a9-86bb-b8ed683a570c